fUSD/lending_fUSD_20241222
["ID","MTS","AMOUNT","RATE_DAILY","PERIOD"]
[346286241,1734868244839,-5687.81,0.00019997,2]
[346286242,1734868244850,-500.0,0.00019997,2]
[346286243,1734868244863,-500.0,0.00019997,2]
[346286244,1734868244876,-708.42,0.00019997,2]
[346286245,1734868244886,-500.0,0.00019997,2]
[346286246,1734868244896,-500.0,0.00019997,2]
[346286247,1734868244906,-500.0,0.00019997,2]
[346286248,1734868244916,-4005.41,0.00019997,2]
[346286249,1734868244927,-500.0,0.00019997,2]
[346286250,1734868244949,-500.0,0.00019997,2]
[346286251,1734868244967,-1542.34,0.00019997,2]
[346286252,1734868244978,-1438.75,0.00019997,2]
[346286253,1734868244989,-523.94,0.00019997,2]
[346286254,1734868244999,-1086.04,0.00019997,2]
[346286255,1734868245012,-500.0,0.00019997,2]
[346286256,1734868245024,-693.12,0.00019997,2]
[346286257,1734868245036,-500.0,0.00019997,2]
[346286258,1734868245052,-1589.32,0.00019997,2]
[346286259,1734868245064,-976.25,0.00019997,2]
[346286260,1734868245076,-929.32,0.00019997,2]
[346286261,1734868245088,-6617.0022367,0.00019997,2]
[346286262,1734868245106,-467.6777633,0.00019997,2]
[346286263,1734868245119,-1550.73,0.00019997,2]
[346286264,1734868245131,-500.0,0.00019997,2]
[346286265,1734868245143,-1572.79,0.00019997,2]
[346286266,1734868245155,-585.54,0.00019997,2]
[346286267,1734868245167,-500.0,0.00019997,2]
[346286268,1734868245178,-500.0,0.00019997,2]
[346286269,1734868245190,-528.72,0.00019997,2]
[346286270,1734868245201,-522.09,0.00019997,2]
[346286271,1734868245212,-4297.81,0.00019997,2]
[346286272,1734868245223,-500.0,0.00019997,2]
[346286273,1734868245234,-1732.6245762,0.00019997,2]
[346286274,1734868245247,-1275.4454238,0.00019997,2]
[346286275,1734868245258,-500.0,0.00019997,2]
[346286276,1734868245269,-591.82316793,0.00019997,2]
[346286277,1734868245287,-112.86683207,0.00019997,2]
[346286278,1734868245298,-1494.56,0.00019997,2]
[346286279,1734868245309,-500.0,0.00019997,2]
[346286280,1734868245320,-551.44,0.00019997,2]
[346286281,1734868245331,-1554.54,0.00019997,2]
[346286282,1734868245341,-6120.54,0.00019997,2]
[346286283,1734868245352,-1892.03,0.00019997,2]
[346286284,1734868245363,-500.0,0.00019997,2]
[346286285,1734868245374,-559.03,0.00019997,2]
[346286286,1734868245384,-1521.27,0.00019997,2]
[346286287,1734868245395,-500.0,0.00019997,2]
[346286288,1734868245406,-2099.13,0.00019997,2]
[346286289,1734868245418,-2879.78,0.00019997,2]
[346286290,1734868245429,-500.0,0.00019997,2]
[346286291,1734868245443,-4352.08,0.00019997,2]
[346286292,1734868245454,-500.0,0.00019997,2]
[346286293,1734868245465,-500.0,0.00019997,2]
[346286294,1734868245476,-1391.97,0.00019997,2]
[346286295,1734868245487,-746.44,0.00019997,2]
[346286296,1734868245497,-500.0,0.00019997,2]
[346286297,1734868245507,-2012.89,0.00019997,2]
[346286298,1734868245519,-500.0,0.00019997,2]
[346286299,1734868245530,-815.85,0.00019997,2]
[346286300,1734868245541,-11499.25,0.00019997,2]
[346286301,1734868245552,-1223.66,0.00019997,2]
[346286302,1734868245563,-500.0,0.00019997,2]
[346286303,1734868245573,-551.31,0.00019997,2]
[346286304,1734868245584,-768.07,0.00019997,2]
[346286305,1734868245595,-500.0,0.00019997,2]
[346286306,1734868245606,-500.0,0.00019997,2]
[346286307,1734868245617,-326.64949144,0.00019997,2]
[346286308,1734868245628,-670.22,0.00019997,2]
[346286309,1734868245640,-631.92,0.00019997,2]
[346286310,1734868245653,-515.23,0.00019998,2]
[346286311,1734868245663,-500.0,0.00019998,2]
[346286312,1734868245675,-500.0,0.00019998,2]
[346286313,1734868245686,-500.0,0.00019998,2]
[346286314,1734868245698,-500.0,0.00019998,2]
[346286315,1734868245710,-500.0,0.00019998,2]
[346286316,1734868245721,-500.0,0.00019998,2]
[346286317,1734868245733,-500.0,0.00019998,2]
[346286318,1734868245744,-500.0,0.00019998,2]
[346286319,1734868245755,-500.0,0.00019998,2]
[346286320,1734868245766,-644.69,0.00019998,2]
[346286321,1734868245777,-500.0,0.00019998,2]
[346286322,1734868245789,-500.0,0.00019998,2]
[346286323,1734868245800,-500.0,0.00019998,2]
[346286324,1734868245811,-519.16884152,0.00019998,2]
[346286325,1734868245822,-500.0,0.00019998,2]
[346286326,1734868245833,-500.0,0.00019998,2]
[346286327,1734868245844,-771.98,0.00019998,2]
[346286328,1734868245856,-500.0,0.00019998,2]
[346286329,1734868245867,-500.0,0.00019998,2]
[346286330,1734868245878,-500.0,0.00019998,2]
[346286331,1734868245891,-220.75051687,0.00019998,2]
[346286332,1734868245902,-500.0,0.00019998,2]
[346286333,1734868245914,-500.0,0.00019998,2]
[346286334,1734868245926,-500.0,0.00019998,2]
[346286335,1734868245938,-1044.86,0.00019998,2]
[346286336,1734868245950,-500.0,0.00019998,2]
[346286337,1734868245962,-3175.84,0.00019998,2]
[346286338,1734868245973,-1057.36,0.00019998,2]
[346286339,1734868245984,-500.0,0.00019998,2]
[346286340,1734868245995,-500.0,0.00019998,2]
[346286341,1734868246007,-525.97,0.00019998,2]
[346286342,1734868246018,-534.66,0.00019998,2]
[346286343,1734868246029,-500.0,0.00019998,2]
[346286344,1734868246041,-500.0,0.00019998,2]
[346286345,1734868246051,-500.0,0.00019998,2]
[346286346,1734868246060,-667.31,0.00019998,2]
[346286347,1734868246070,-1046.69,0.00019998,2]
[346286348,1734868246079,-988.12,0.00019998,2]
[346286349,1734868246088,-509.09,0.00019998,2]
[346286350,1734868246097,-849.72,0.00019998,2]
[346286351,1734868246106,-6083.96,0.00019998,2]
[346286352,1734868246116,-500.0,0.00019998,2]
[346286353,1734868246125,-500.0,0.00019998,2]
[346286354,1734868246134,-747.83,0.00019998,2]
[346286356,1734868246143,-500.0,0.00019998,2]
[346286358,1734868246152,-500.0,0.00019998,2]
[346286360,1734868246162,-518.17,0.00019998,2]
[346286362,1734868246170,-14774.26,0.00019998,2]
[346286364,1734868246179,-500.0,0.00019998,2]
[346286366,1734868246188,-1645.14,0.00019998,2]
[346286368,1734868246197,-2296.78,0.00019998,2]
[346286370,1734868246206,-521.81,0.00019998,2]
[346286373,1734868246216,-4479.59,0.00019998,2]
[346286376,1734868246225,-805.19,0.00019998,2]
[346286379,1734868246234,-300.0,0.00019999,2]
[346286381,1734868246243,-311.56452795,0.00019999,2]
[346286383,1734868246252,-666.0,0.00019999,2]
[346286385,1734868246261,-689.79606711,0.00019999,2]
[346286387,1734868246270,-300.0,0.00019999,2]
[346286389,1734868246279,-300.0,0.00019999,2]
[346286392,1734868246288,-63.77451505,0.00019999,2]
[346286405,1734868246883,-500.0,0.00019723,2]
[346286406,1734868246894,-602.22548495,0.00019999,2]
[346286407,1734868246906,-666.0,0.00019999,2]
[346286408,1734868246916,-675.33170954,0.00019999,2]
[346286409,1734868246926,-479.57265574,0.00019999,5]
[346286411,1734868246936,-500.0,0.00019999,2]
[346286412,1734868246946,-500.0,0.00019999,2]
[346286413,1734868246954,-378.42558985,0.00019999,2]
[346286414,1734868246963,-1168.78143036,0.00019999,5]
[346286415,1734868246972,-1628.17,0.00019999,2]
[346286416,1734868246983,-359.49312958,0.00019999,2]
[346286417,1734868246994,-1268.67687042,0.00019999,2]
[346286418,1734868247003,-1628.17,0.00019999,2]
[346286419,1734868247012,-1628.17,0.00019999,2]
[346286420,1734868247021,-1538.98313008,0.00019999,2]
[346286421,1734868247032,-89.18686992,0.00019999,2]
[346286422,1734868247042,-1628.17,0.00019999,2]
[346286423,1734868247053,-1628.17,0.00019999,2]
[346286424,1734868247063,-1628.17,0.00019999,2]
[346286425,1734868247072,-1628.17,0.00019999,2]
[346286426,1734868247082,-1628.17,0.00019999,2]
[346286427,1734868247095,-183.65117373,0.00019999,2]
[346286428,1734868247119,-1444.51882627,0.00019999,2]
[346286429,1734868247128,-1628.17,0.00019999,2]
[346286430,1734868247137,-1628.17,0.00019999,2]
[346286431,1734868247147,-1580.53468353,0.00019999,2]
[346286432,1734868247462,-47.63531647,0.00019999,2]
[346286433,1734868247471,-1628.17,0.00019999,2]
[346286434,1734868247480,-1628.17,0.00019999,2]
[346286435,1734868247489,-1166.38364976,0.00019999,2]
[346286436,1734868247501,-461.78635024,0.00019999,2]
[346286437,1734868247510,-1628.17,0.00019999,2]
[346286438,1734868247520,-1628.17,0.00019999,2]
[346286439,1734868247529,-1628.17,0.00019999,2]
[346286440,1734868247539,-1628.17,0.00019999,2]
[346286441,1734868247549,-1628.38,0.00019999,2]
[346286442,1734868247558,-150.0,0.00019999,2]
[346286443,1734868247567,-1467.0,0.00019999,2]
[346286444,1734868247576,-23150.35052503,0.0002,3]
[346286445,1734868247587,-96629.28320868,0.0002,3]
[346286446,1734868247668,-418.18435819,0.0002,3]
[346286447,1734868247683,-1009.0940635,0.0002,3]
[346286463,1734868862829,295.43,0.00010137,2]
[346286512,1734869432369,-160.27,0.00013699,2]
[346286513,1734869432378,-1096.6,0.00016179,2]
[346286514,1734869432388,-295.43,0.00016813,2]
[346286515,1734869432398,-500.0,0.00017144,2]
[346286516,1734869432408,-500.0,0.00017144,2]
[346286517,1734869432417,-300.0,0.00017981,2]
[346286518,1734869432426,-23900.0,0.00017982,2]
[346286519,1734869432435,-1500.0,0.00018035,2]
[346286520,1734869432444,-250.0,0.00018106,2]
[346286521,1734869432453,-250.0,0.0001813,2]
[346286522,1734869432463,-250.0,0.00018143,2]
[346286523,1734869432471,-762.43,0.00018207,2]
[346286524,1734869432480,-500.0,0.0001824,2]
[346286525,1734869432490,-168.35,0.00018257,2]
[346286526,1734869432645,-200.0,0.00018268,2]
[346286527,1734869432704,-162.97,0.00018331,30]
[346286528,1734869432715,-250.0,0.00018334,2]
[346286529,1734869432725,-151.24,0.00018388,2]
[346286530,1734869432734,-152.4,0.00018395,2]
[346286531,1734869432744,-1096.6,0.00018443,2]
[346286532,1734869432753,-1000.0,0.00018461,2]
[346286533,1734869432763,-151.24,0.0001848,2]
[346286534,1734869432772,-900.0,0.000189,6]
[346286535,1734869432781,-878.50735552,0.00018971,2]
[346286536,1734869432791,-446.351,0.00019,2]
[346286538,1734869432800,-1800.0,0.00019,6]
[346286540,1734869432809,-300.0,0.00019014,2]
[346286542,1734869432818,-1816.874,0.00019014,2]
[346286543,1734869432827,-3770.0,0.00019014,2]
[346286545,1734869432837,-618.77936122,0.00019014,2]
[346286546,1734869432853,-297.90163878,0.00019014,2]
[346286547,1734869432863,-13.50946122,0.00019014,2]
[346286548,1734869432894,-1242.49053878,0.00019014,2]
[346286549,1734869432907,-818.0,0.00019014,2]
[346286551,1734869432916,-536.0,0.00019014,2]
[346286552,1734869432925,-1223.4848047,0.00019014,2]
[346286553,1734869432937,-1312.6811953,0.00019014,2]
[346286554,1734869432947,-1101.0,0.00019014,2]
[346286555,1734869432956,-13756.0,0.00019014,2]
[346286556,1734869432965,-3886.0,0.00019014,2]
[346286557,1734869432977,-150.0,0.00019014,2]
[346286558,1734869432986,-1170.0,0.00019014,2]
[346286559,1734869432995,-151.0,0.00019074,2]
[346286560,1734869433004,-1903.55167407,0.000191,2]
[346286561,1734869433014,-2800.0,0.000191,6]
[346286562,1734869433023,-1903.55167408,0.00019114,2]
[346286563,1734869433034,-151.0,0.00019174,2]
[346286564,1734869433043,-409.0,0.00019178,2]
[346286565,1734869433053,-3700.0,0.000192,7]
[346286566,1734869433063,-167.71,0.00019235,2]
[346286567,1734869433072,-4700.0,0.000193,7]
[346286568,1734869433082,-500.0,0.00019336,2]
[346286569,1734869433091,-664.59582231,0.00019349,2]
[346286570,1734869433100,-10974.9386,0.00019349,2]
[346286571,1734869433110,-745.546,0.00019349,2]
[346286572,1734869433120,-10750.0,0.00019379,2]
[346286573,1734869433129,-900.0,0.000194,7]
[346286574,1734869433139,-664.5958223,0.0001941,2]
[346286575,1734869433149,-500.0,0.00019449,2]
[346286576,1734869433159,-500.0,0.00019449,2]
[346286577,1734869433170,-500.0,0.00019449,2]
[346286578,1734869433180,-500.0,0.00019449,2]
[346286579,1734869433190,-500.0,0.00019449,2]
[346286580,1734869433200,-500.0,0.00019449,2]
[346286581,1734869433209,-500.0,0.00019449,2]
[346286582,1734869433219,-500.0,0.00019449,2]
[346286583,1734869433228,-502.51,0.00019449,2]
[346286584,1734869433238,-500.0,0.00019449,2]
[346286585,1734869433249,-500.0,0.00019449,2]
[346286586,1734869433259,-500.0,0.00019449,2]
[346286587,1734869433268,-500.0,0.00019449,2]
[346286588,1734869433278,-500.0,0.00019449,2]
[346286589,1734869433288,-606.39962781,0.00019449,2]
[346286590,1734869433297,-500.0,0.00019449,2]
[346286591,1734869433306,-500.0,0.00019449,2]
[346286592,1734869433316,-500.0,0.00019449,2]
[346286593,1734869433325,-500.0,0.00019449,2]
[346286594,1734869433334,-500.0,0.00019449,2]
[346286595,1734869433344,-381.2,0.00019449,2]
[346286596,1734869433353,-500.0,0.00019449,2]
[346286597,1734869433366,-500.0,0.00019449,2]
[346286598,1734869433376,-500.0,0.00019449,2]
[346286599,1734869433385,-500.0,0.00019449,2]
[346286600,1734869433394,-500.0,0.00019449,2]
[346286601,1734869433403,-500.0,0.00019449,2]
[346286602,1734869433413,-500.0,0.00019449,2]
[346286603,1734869433426,-500.0,0.00019449,2]
[346286604,1734869433435,-500.0,0.00019449,2]
[346286605,1734869433445,-500.0,0.00019449,2]
[346286606,1734869433454,-500.0,0.00019449,2]
[346286607,1734869433464,-500.0,0.00019449,2]
[346286608,1734869433473,-500.0,0.00019449,2]
[346286609,1734869433482,-500.0,0.00019449,2]
[346286610,1734869433492,-500.0,0.00019449,2]
[346286611,1734869433501,-500.0,0.00019449,2]
[346286612,1734869433511,-500.0,0.00019449,2]
[346286613,1734869433520,-377.43719075,0.00019449,2]
[346286614,1734869433534,-564.1,0.00019449,2]
[346286615,1734869433544,-500.0,0.00019449,2]
[346286616,1734869433554,-500.0,0.00019449,2]
[346286617,1734869433563,-500.0,0.00019449,2]
[346286618,1734869433573,-500.0,0.00019449,2]
[346286619,1734869433583,-500.0,0.00019449,2]
[346286620,1734869433592,-500.0,0.00019449,2]
[346286621,1734869433601,-550.35336838,0.00019449,2]
[346286622,1734869433611,-500.0,0.00019449,2]
[346286623,1734869433621,-500.0,0.00019449,2]
[346286624,1734869433631,-500.0,0.00019449,2]
[346286625,1734869433640,-675.48,0.00019449,2]
[346286626,1734869433649,-500.0,0.00019449,2]
[346286627,1734869433659,-500.0,0.00019449,2]
[346286628,1734869433668,-500.0,0.00019449,2]
[346286629,1734869433678,-583.9,0.00019449,2]
[346286630,1734869433687,-686.02,0.00019449,2]
[346286631,1734869433697,-500.0,0.00019449,2]
[346286632,1734869433707,-925.19,0.00019449,2]
[346286633,1734869433718,-500.0,0.00019449,2]
[346286634,1734869433727,-664.5958223,0.00019471,2]
[346286635,1734869433737,-900.0,0.000195,7]
[346286636,1734869433747,-664.5958223,0.00019533,2]
[346286637,1734869433756,-664.5958223,0.00019594,2]
[346286638,1734869433766,-1351.6512,0.00019598,2]
[346286639,1734869433775,-1144.53229079,0.000196,2]
[346286640,1734869433784,-900.0,0.000196,7]
[346286641,1734869433794,-3381.4675,0.000196,2]
[346286642,1734869433804,-726.0,0.000196,4]
[346286643,1734869433814,-1000.0,0.000196,4]
[346286644,1734869433823,-1000.0,0.000196,2]
[346286645,1734869433832,-420.0,0.0001962,2]
[346286646,1734869433841,-259.29836126,0.00019622,2]
[346286647,1734869433851,-259.29836118,0.00019653,2]
[346286648,1734869433861,-664.5958223,0.00019655,2]
[346286649,1734869433871,-259.29836118,0.00019684,2]
[346286650,1734869433880,-500.0,0.00019697,2]
[346286651,1734869433890,-500.0,0.00019697,2]
[346286652,1734869433899,-500.0,0.00019697,2]
[346286653,1734869433913,-1262.62,0.00019697,2]
[346286654,1734869433923,-832.84,0.00019697,2]
[346286655,1734869433933,-512.35,0.00019697,2]
[346286656,1734869433944,-500.0,0.00019697,2]
[346286657,1734869433954,-6199.1,0.00019697,2]
[346286658,1734869433964,-500.0,0.00019697,2]
[346286659,1734869433974,-616.6,0.00019697,2]
[346286660,1734869433985,-2632.06,0.00019697,2]
[346286661,1734869433995,-500.0,0.00019697,2]
[346286662,1734869434005,-500.0,0.00019697,2]
[346286663,1734869434015,-1655.53,0.00019697,2]
[346286664,1734869434025,-2519.81,0.00019697,2]
[346286665,1734869434035,-500.0,0.00019697,2]
[346286666,1734869434044,-1217.97,0.00019697,2]
[346286667,1734869434054,-10061.84,0.00019697,2]
[346286668,1734869434063,-500.0,0.00019697,2]
[346286669,1734869434074,-672.07,0.00019697,2]
[346286670,1734869434084,-500.0,0.00019697,2]
[346286671,1734869434095,-500.0,0.00019697,2]
[346286672,1734869434105,-1634.91,0.00019697,2]
[346286673,1734869434116,-500.0,0.00019697,2]
[346286674,1734869434126,-608.03,0.00019697,2]
[346286675,1734869434137,-500.0,0.00019697,2]
[346286676,1734869434147,-345.7946576,0.00019698,2]
[346286677,1734869434157,-500.0,0.00019698,2]
[346286678,1734869434167,-500.0,0.00019698,2]
[346286679,1734869434177,-500.0,0.00019698,2]
[346286680,1734869434186,-362.122403,0.00019698,2]
[346286681,1734869434196,-419.198794,0.00019698,2]
[346286682,1734869434206,-500.0,0.00019698,2]
[346286683,1734869434216,-500.0,0.00019698,2]
[346286684,1734869434226,-500.0,0.00019698,2]
[346286685,1734869434235,-500.0,0.00019698,2]
[346286686,1734869434245,-500.0,0.00019698,2]
[346286687,1734869434255,-756.23,0.00019698,2]
[346286688,1734869434264,-500.0,0.00019698,2]
[346286689,1734869434275,-500.0,0.00019698,2]
[346286690,1734869434285,-803.47,0.00019698,2]
[346286691,1734869434294,-500.0,0.00019698,2]
[346286692,1734869434304,-1102.62,0.00019698,2]
[346286693,1734869434314,-500.0,0.00019698,2]
[346286694,1734869434323,-5067.12,0.00019698,2]
[346286695,1734869434333,-7500.0,0.00019698,2]
[346286696,1734869434343,-247.69,0.00019698,2]
[346286697,1734869434352,-649.38,0.00019698,2]
[346286698,1734869434362,-500.0,0.00019698,2]
[346286699,1734869434371,-500.0,0.00019698,2]
[346286700,1734869434380,-3671.63,0.00019698,2]
[346286701,1734869434389,-500.0,0.00019698,2]
[346286702,1734869434398,-500.0,0.00019698,2]
[346286703,1734869434408,-500.0,0.00019698,2]
[346286704,1734869434418,-500.0,0.00019698,2]
[346286705,1734869434427,-606.48,0.00019698,2]
[346286706,1734869434436,-1416.61,0.00019698,2]
[346286707,1734869434446,-854.22,0.00019698,2]
[346286708,1734869434455,-500.0,0.00019698,2]
[346286709,1734869434465,-1421.5,0.00019698,2]
[346286710,1734869434474,-500.0,0.00019698,2]
[346286711,1734869434483,-500.0,0.00019698,2]
[346286712,1734869434493,-1390.65,0.00019698,2]
[346286713,1734869434503,-500.0,0.00019698,2]
[346286714,1734869434512,-500.0,0.00019698,2]
[346286715,1734869434522,-1376.19,0.00019698,2]
[346286716,1734869434532,-500.0,0.00019698,2]
[346286717,1734869434542,-1424.99,0.00019698,2]
[346286718,1734869434551,-500.0,0.00019698,2]
[346286719,1734869434561,-1307.74,0.00019698,2]
[346286720,1734869434571,-1394.5,0.00019698,2]
[346286721,1734869434580,-1944.5,0.00019698,2]
[346286722,1734869434590,-5355.47,0.00019698,2]
[346286723,1734869434599,-684.24,0.00019698,2]
[346286724,1734869434610,-747.87,0.00019698,2]
[346286725,1734869434620,-1761.28,0.00019698,2]
[346286726,1734869434629,-500.0,0.00019698,2]
[346286727,1734869434638,-614.37,0.00019698,2]
[346286728,1734869434647,-500.0,0.00019698,2]
[346286729,1734869434657,-500.0,0.00019698,2]
[346286730,1734869434667,-500.0,0.00019698,2]
[346286731,1734869434676,-552.93,0.00019698,2]
[346286732,1734869434685,-500.0,0.00019698,2]
[346286733,1734869434695,-500.0,0.00019698,2]
[346286734,1734869434705,-502.09837194,0.00019698,2]
[346286735,1734869434715,-500.0,0.00019698,2]
[346286736,1734869434724,-500.0,0.00019698,2]
[346286737,1734869434734,-500.0,0.00019698,2]
[346286738,1734869434743,-500.0,0.00019698,2]
[346286739,1734869434753,-500.0,0.00019699,2]
[346286740,1734869434763,-500.0,0.00019699,2]
[346286741,1734869434773,-500.0,0.00019699,2]
[346286742,1734869434782,-500.0,0.00019699,2]
[346286743,1734869434792,-633.2,0.00019699,2]
[346286744,1734869434802,-500.0,0.00019699,2]
[346286745,1734869434811,-500.0,0.00019699,2]
[346286746,1734869434821,-500.0,0.00019699,2]
[346286747,1734869434831,-515.67,0.00019699,2]
[346286748,1734869434840,-500.0,0.00019699,2]
[346286749,1734869434850,-500.0,0.00019699,2]
[346286750,1734869434860,-320.96,0.00019699,2]
[346286751,1734869434869,-500.0,0.00019699,2]
[346286752,1734869434879,-500.0,0.00019699,2]
[346286753,1734869434889,-500.0,0.00019699,2]
[346286754,1734869434899,-500.0,0.00019699,2]
[346286755,1734869434913,-534.28,0.00019699,2]
[346286756,1734869434923,-500.0,0.00019699,2]
[346286757,1734869434932,-638.34,0.00019699,2]
[346286758,1734869434943,-500.0,0.00019699,2]
[346286759,1734869434952,-519.7,0.00019699,2]
[346286760,1734869434962,-500.0,0.00019699,2]
[346286761,1734869434971,-905.77,0.00019699,2]
[346286762,1734869434983,-500.0,0.00019699,2]
[346286763,1734869434993,-500.0,0.00019699,2]
[346286764,1734869435003,-500.0,0.00019699,2]
[346286765,1734869435012,-226.69243293,0.00019699,2]
[346286766,1734869435022,-500.0,0.00019699,2]
[346286767,1734869435032,-5576.96,0.00019699,2]
[346286768,1734869435042,-500.0,0.00019699,2]
[346286769,1734869435051,-500.0,0.00019699,2]
[346286770,1734869435061,-500.0,0.00019699,2]
[346286771,1734869435071,-500.0,0.00019699,2]
[346286772,1734869435080,-500.0,0.00019699,2]
[346286773,1734869435089,-500.0,0.00019699,2]
[346286774,1734869435099,-522.1,0.00019699,2]
[346286775,1734869435109,-500.0,0.00019699,2]
[346286776,1734869435120,-13543.07,0.00019699,2]
[346286777,1734869435129,-3939.66,0.00019699,2]
[346286778,1734869435139,-500.0,0.00019699,2]
[346286779,1734869435149,-500.0,0.00019699,2]
[346286780,1734869435159,-1508.05,0.00019699,2]
[346286781,1734869435169,-500.0,0.00019699,2]
[346286782,1734869435179,-500.0,0.00019699,2]
[346286783,1734869435188,-500.0,0.00019699,2]
[346286784,1734869435198,-509.67,0.00019699,2]
[346286785,1734869435207,-2105.38,0.00019699,2]
[346286786,1734869435217,-500.0,0.00019699,2]
[346286787,1734869435226,-500.0,0.00019699,2]
[346286788,1734869435236,-500.0,0.00019699,2]
[346286789,1734869435245,-500.0,0.00019699,2]
[346286790,1734869435255,-3989.4,0.00019699,2]
[346286791,1734869435265,-526.32,0.00019699,2]
[346286792,1734869435275,-4106.29,0.00019699,2]
[346286793,1734869435284,-533.28,0.00019699,2]
[346286794,1734869435294,-776.43,0.00019699,2]
[346286795,1734869435303,-500.0,0.00019699,2]
[346286796,1734869435313,-500.0,0.00019699,2]
[346286797,1734869435322,-1121.69,0.00019699,2]
[346286798,1734869435332,-542.78,0.00019699,2]
[346286799,1734869435343,-1050.75,0.00019699,2]
[346286800,1734869435352,-914.25,0.00019699,2]
[346286801,1734869435364,-500.0,0.00019699,2]
[346286802,1734869435373,-500.0,0.00019699,2]
[346286803,1734869435382,-500.0,0.00019699,2]
[346286804,1734869435393,-500.0,0.00019699,2]
[346286805,1734869435402,-2778.86,0.00019699,2]
[346286806,1734869435411,-769.72,0.00019699,2]
[346286807,1734869435420,-211490.21053374,0.000197,2]
[346286808,1734869435430,-900.0,0.000197,7]
[346286809,1734869435439,-259.29836118,0.00019715,2]
[346286810,1734869435448,-664.5958223,0.00019716,2]
[346286811,1734869435458,-500.0,0.00019723,2]
[346286812,1734869435467,-500.0,0.00019723,2]
[346286813,1734869435476,-500.0,0.00019723,2]
[346286814,1734869435486,-500.0,0.00019723,2]
[346286815,1734869435495,-172.60616451,0.00019723,2]
[346286816,1734869435505,-500.0,0.00019723,2]
[346286817,1734869435515,-500.0,0.00019723,2]
[346286818,1734869435525,-500.0,0.00019723,2]
[346286819,1734869435534,-500.0,0.00019723,2]
[346286820,1734869435544,-500.0,0.00019723,2]
[346286821,1734869435553,-533.76742755,0.00019723,2]
[346286822,1734869435563,-226.33112779,0.00019723,2]
[346286823,1734869435573,-500.0,0.00019723,2]
[346286824,1734869435582,-523.8590039,0.00019723,2]
[346286825,1734869435592,-327.42,0.00019723,2]
[346286826,1734869435602,-500.0,0.00019723,2]
[346286827,1734869435612,-500.0,0.00019723,2]
[346286828,1734869435621,-564.1,0.00019723,2]
[346286829,1734869435631,-500.0,0.00019723,2]
[346286830,1734869435640,-500.0,0.00019723,2]
[346286831,1734869435649,-164.94655322,0.00019723,2]
[346286832,1734869435659,-500.0,0.00019723,2]
[346286833,1734869435669,-500.0,0.00019723,2]
[346286834,1734869435679,-500.0,0.00019723,2]
[346286835,1734869435688,-500.0,0.00019723,2]
[346286836,1734869435697,-500.0,0.00019723,2]
[346286837,1734869435707,-675.48,0.00019723,2]
[346286838,1734869435717,-500.0,0.00019723,2]
[346286839,1734869435726,-500.0,0.00019723,2]
[346286840,1734869435735,-500.0,0.00019723,2]
[346286841,1734869435745,-583.9,0.00019723,2]
[346286842,1734869435754,-686.02,0.00019723,2]